Cogmind - Beta 16.1 @@@ ROGUE MODE // 2026.03.25 @ 20:30:37 Player: Satori Result: Destroyed by G-34 Mercenary with Small Laser Performance ------------- Evolutions (0) 0 Regions Visited (1) 200 Robots Destroyed (14) 70 Value Destroyed (304) 304 Prototype IDs (0) 0 Alien Tech Used (0) 0 Bonus (0) 0 TOTAL SCORE: 574 Bonus ------- None Cogmind --------- Core Integrity 0/250 Matter 266/300 Energy 123/125 System Corruption 0% Temperature Cool (15) Movement Core (500) Ox9 Location -10/Materials Parts ------- > --- POWER (1) -------- Light Ion Engine > --- PROPULSION (2) --- (None) > --- UTILITY (2) ------ Improved Heat Sink Large Storage Unit > --- WEAPON (2) ------- Small Laser Particle Gun > --- INVENTORY (15) --- Light Ion Engine Heat Sink Heat Sink Seismic Detector Core Shielding EM Pulse Gun Small Laser Small Laser Light Assault Rifle Peak State ------------ > --- POWER ------------ Ion Engine > --- PROPULSION ------- Light Treads Light Treads > --- UTILITY ---------- Small Storage Unit Improved Terrain Scanner > --- WEAPON ----------- Medium Laser Small Laser > --- INVENTORY -------- Light Ion Engine Seismic Detector EM Pulse Gun [Rating: 9] Favorites ----------- Power Light Ion Engine Engine Light Ion Engine Propulsion Light Treads Treads Light Treads Utility Large Storage Unit Device Improved Heat Sink Storage Large Storage Unit Weapon Small Laser Energy Gun Small Laser Ballistic Gun Light Assault Rifle Build | -11 -10 ------- Run | Yrd Mat Slots Evolved . | . . Power . | . . Propulsion . | . . Utility . | . . Weapon . | . . Parts Attached 15 | 7 8 Power 2 | 1 1 Engine 2 | 1 1 Core . | . . Reactor . | . . Propulsion 2 | 2 . Treads 2 | 2 . Leg . | . . Wheel . | . . Hover . | . . Flight . | . . Utility 6 | 2 4 Device 3 | 1 2 Storage 3 | 1 2 Processor . | . . Hackware . | . . Protection . | . . Artifact . | . . Weapon 5 | 2 3 Energy Gun 3 | 2 1 Energy Cannon . | . . Ballistic Gun 2 | . 2 Ballistic Cannon . | . . Launcher . | . . Special Weapon . | . . Impact Weapon . | . . Slashing Weapon . | . . Piercing Weapon . | . . Special Melee Weapon . | . . Unidentified Prototypes . | . . Parts Lost 6 | . 6 Power 1 | . 1 Propulsion 2 | . 2 Utility 1 | . 1 Weapon 2 | . 2 Highest Loss Streak 2 | . 2 To Critical Strikes . | . . Average Backups 6 | 1 6 Power . | . 1 Propulsion . | . . Utility 2 | . 2 Weapon 3 | . 3 Tool/Special . | . . Unused Backups 7 | . 7 Power 1 | . 1 Propulsion . | . . Utility 3 | . 3 Weapon 3 | . 3 Tool/Special . | . . Average Slot Usage (%) 85 | . 85 Engine 13 | . 13 Treads 14 | . 14 Device 13 | . 13 Storage 14 | . 14 Energy Gun 19 | . 19 Ballistic Gun 8 | . 8 Peak Build Rating 9 | 9 9 Average Rating 7 | 5 7 On Entrance 4 | . 9 Avg Prop Armor Cover (%) . | . . Naked Turns . | . . Heaviest Build 29 | 14 29 Greatest Support 40 | 40 40 Greatest Overweight (x) 8 | . 8 Average Overweight (x) 1 | . 1 Largest Inventory Capacity 15 | 8 15 Average Capacity 14 | 7 14 Most Carried 10 | 3 10 Average Carried 6 | 1 7 Final Capacity 15 | 8 15 Final Carried 9 | 3 9 Class Distribution -------------------- 100% | Mutant Dominant Class ---------------- Mutant | -10/Materials Resources | -11 -10 ----------- Run | Yrd Mat Matter Collected 319 | 250 69 Remotely . | . . Salvage Created 388 | 23 365 Parts 27 | 5 22 Haulers Intercepted . | . . Recyclers Shooed . | . . Parts Field Recycled . | . . Retrieved Matter . | . . Parts Self-Destructed . | . . Prevented . | . . Parts Restored . | . . Kills | -11 -10 ------- Run | Yrd Mat Combat Hostiles Destroyed 12 | . 12 Guns 12 | . 12 Classes Destroyed 3 | 1 2 Tunneler 2 | 2 . Swarmer 6 | . 6 Grunt 6 | . 6 Best Kill Streak 4 | 2 4 Combat Bots Only 4 | . 4 Max Kills in Single Turn 2 | 1 2 Gunslinging 1 | . 1 Exploded . | . . Melee . | . . Uniques/NPCs Destroyed . | . . Combat | -11 -10 -------- Run | Yrd Mat Hostile Shots Fired 107 | . 107 Missed 23 | . 23 Hits 84 | . 84 Projectile 84 | . 84 Critical Strikes 1 | . 1 Damage Taken 927 | . 927 Core 252 | . 252 Absorbed by Shields . | . . Core Remaining (%) 100 | 100 . Volleys Fired 45 | 2 43 Largest 2 | 2 2 Hottest 105 | 90 105 Shots Fired 89 | 4 85 Gun 89 | 4 85 Cannon . | . . Launcher . | . . Special . | . . Kinetic 18 | . 18 Thermal 71 | 4 67 Explosive . | . . Electromagnetic . | . . Robot Hit Streak 12 | 2 12 Robot Miss Streak 5 | 1 5 Penetration Max . | . . Secondary Targets 4 | . 4 Max Gunslinging Chain 1 | . 1 Shots Hit Robots 61 | 2 59 Core Hits 24 | 2 22 Critical Kills . | . . Critical Parts Destroyed . | . . Critical Strikes 2 | . 2 Burn 2 | . 2 Melee Attacks . | . . Impact . | . . Slashing . | . . Piercing . | . . Sneak Attacks . | . . Combat Hostiles . | . . Follow-up Attacks . | . . Damage Inflicted 664 | 22 642 Guns 664 | 22 642 Cannons . | . . Explosions . | . . Melee . | . . Ramming . | . . Kinetic 121 | . 121 Thermal 543 | 22 521 Explosive . | . . Electromagnetic . | . . Impact . | . . Slashing . | . . Piercing . | . . Highest Corruption . | . . Average Corruption . | . . Corruption Purged . | . . Corruption Blocked . | . . Overload Shots . | . . Overflow Damage . | . . Projectiles . | . . Explosions . | . . Melee . | . . Knockbacks . | . . Impact . | . . Kinetic . | . . Secondary . | . . Self-Inflicted Damage . | . . Shots . | . . Rammed . | . . Targets Rammed . | . . Kicked . | . . Crushed . | . . Highest Temperature 444 | 30 444 Average Temperature 145 | 18 158 Received Heat Transfer 384 | . 384 Effects 3 | . 3 Shutdowns 1 | . 1 Energy Bleed 1 | . 1 Damage (minor) 1 | . 1 Siege Activations . | . . Martial Activations . | . . Shielding Activations . | . . Robots Disrupted . | . . Combat Hostiles . | . . Robots Corrupted . | . . Combat Hostiles . | . . Parts Fried . | . . Impact Corruptions . | . . Robots Melted . | . . Combat Hostiles . | . . Parts Melted 1 | . 1 Heat Transferred 1551 | 62 1489 Parts Sabotaged . | . . Parts Stolen . | . . Parts Stripped . | . . Power Chain Reactions . | . . Alert | -11 -10 ------- Run | Yrd Mat Maximum Alert Level . | . . Low Security (%) 100 | 100 100 Level 1 . | . . Level 2 . | . . Level 3 . | . . Level 4 . | . . Level 5 . | . . High Security . | . . Max Security . | . . Peak Influence 110 | 10 110 Initial . | . . Average 45 | 1 50 Influence Increases 351 | 10 341 Destroy 0b10 Robot/C 240 | . 240 Destroy 0b10 Robot/NC 10 | 10 . Destroy Leader 50 | . 50 Successful Hack 21 | . 21 Lose Combat Pursuer 30 | . 30 Influence Decreases 351 | 10 341 Time Decay 301 | 10 291 Lost Part 50 | . 50 Squads Dispatched 1 | . 1 Investigation . | . . Extermination . | . . Reinforcement 1 | . 1 Assault . | . . Garrison . | . . Intercept . | . . Searches Triggered . | . . Construction Impeded . | . . Haulers Reinforced . | . . Active Scanning Responses . | . . Cargo Convoy Interrupts . | . . Stealth | -11 -10 --------- Run | Yrd Mat Distress Signals 1 | . 1 Communications Jammed . | . . Distress Signals . | . . Times Spotted 22 | . 22 Peak Tracking Total 5 | . 5 Tactical Retreats 2 | . 2 Traps | -11 -10 ------- Run | Yrd Mat Traps Triggered . | . . Indirectly . | . . Trap Hack Attempts . | . . Triggered . | . . Disarmed . | . . Reprogrammed . | . . Reused . | . . Traps Extracted . | . . Installed . | . . Triggered . | . . Machines | -11 -10 ---------- Run | Yrd Mat Machines Disabled . | . . Max in Single Turn . | . . Machines Repaired . | . . Machines Dismantled . | . . Machines Sabotaged . | . . Overloaded Fab Kills . | . . Hacking | -11 -10 --------- Run | Yrd Mat Machines Accessed 5 | . 5 Terminals 4 | . 4 Fabricators . | . . Repair Stations . | . . Recycling Units 1 | . 1 Scanalyzers . | . . Garrison Access . | . . Total Hacks 14 | . 14 Successful 8 | . 8 Failed 6 | . 6 Catastrophic 1 | . 1 Database Lockouts . | . . Manual 9 | . 9 Terminals 13 | . 13 Fabricators . | . . Repair Stations . | . . Recycling Units 1 | . 1 Scanalyzers . | . . Garrison Access . | . . Terminal Hacks 2 | . 2 Locate Traps 1 | . 1 Registered Components 1 | . 1 Fabricator Hacks . | . . Repair Station Hacks . | . . Recycling Unit Hacks 1 | . 1 Retrieve Components 1 | . 1 Scanalyzer . | . . Garrison Access Hacks . | . . Unauthorized Hacks 5 | . 5 Terminals 5 | . 5 Botnet 2 | . 2 Skim 3 | . 3 Fabricators . | . . Repair Stations . | . . Recycling Units . | . . Scanalyzers . | . . Garrison Access . | . . Data Cores Recovered . | . . Used . | . . Hacking Detections 4 | . 4 Full Trace Events . | . . Feedback Events . | . . Feedback Blocked . | . . Robot Schematics Acquired . | . . Robots Built . | . . Authchips . | . . Time . | . . Total Robot Build Rating . | . . Part Schematics Acquired . | . . Parts Built . | . . Authchips . | . . Time . | . . Total Part Build Rating . | . . Part Studies Acquired . | . . Parts Repaired . | . . Time . | . . Parts Recycled . | . . Recycled Matter . | . . Retrieved Matter . | . . Retrieved Components 1 | . 1 Parts Scanalyzed . | . . Part Schematics Acquired . | . . Parts Damaged . | . . Bothacking | -11 -10 ------------ Run | Yrd Mat Used RIF Installer . | . . Robots Hacked . | . . Non-combat . | . . Combat . | . . Robot Hacks Applied . | . . Relay Couplers Released . | . . Fabnet Peak Effective % . | . . Robots Rewired . | . . Allies Hacked . | . . Hacks Repelled . | . . Allies | -11 -10 -------- Run | Yrd Mat Total Allies . | . . Largest Group . | . . Highest-Rated Group . | . . Highest-Rated Ally . | . . Total Orders . | . . Ally Attacks . | . . Total Damage . | . . Kills . | . . Allies Corrupted . | . . Allies Melted . | . . Intel | -11 -10 ------- Run | Yrd Mat Active Infowar (turns) 97 | 7 90 Terrain 97 | 7 90 Robot Analysis Total . | . . Derelict Logs Recovered . | . . Drone Launches . | . . Drone Recoveries . | . . Exploration | -11 -10 ------------- Run | Yrd Mat Turns Passed 822 | 84 738 Spaces Moved 289 | 45 244 Core 53 | 6 47 Treads 236 | 39 197 Legs . | . . Wheels . | . . Hover . | . . Flight . | . . Fastest Speed 50 | 50 160 Average Speed 224 | 145 239 Slowest Speed 450 | 160 450 Overloaded Moves . | . . Propulsion Burnouts . | . . Robots Hopped . | . . Potential Cave-ins . | . . Cave-ins Triggered . | . . Exploration Rate (%) 30 | 4 56 Regions Visited 1 Branch Regions . Pre-discovered Areas . | . . Known Exits Taken . | . . Unknown Exits Taken 1 | 1 . Scrap Searched . | . . Spaces Dug . | . . Terrain Destroyed . | . . Melee . | . . Projectile . | . . AOE . | . . Terrain Rammed . | . . Walls Destroyed . | . . Machines Disabled . | . . Actions | -11 -10 --------- Run | Yrd Mat Total 370 | 56 314 Wait 10 | . 10 Move 288 | 44 244 Hop . | . . Pick Up 10 | 3 7 Fast Attach 9 | 7 2 Attach 2 | . 2 Detach . | . . Swap 4 | . 4 Drop 2 | . 2 Fire 45 | 2 43 Melee . | . . Ram . | . . Kick . | . . Crush . | . . Escape Stasis . | . . Rewire . | . . Trap . | . . Miscellaneous . | . . Route ------- -11/Scrapyard -10/Materials (discovered 3 exits: [*Mat x2] / [*Min]) History --------- Turn | Location | Event 29 | -11/Scrapyard | Discovered new exit (range 15) 85 | -11/Scrapyard | Entered Materials 230 | -10/Materials | Discovered new exit (range 9) 259 | -10/Materials | Discovered new exit (range 11) 316 | -10/Materials | Build established: Mutant 361 | -10/Materials | Core integrity fell below 50% 500 | -10/Materials | Discovered new exit (range 15) 798 | -10/Materials | Core integrity fell below 20% 823 | -10/Materials | Destroyed by G-34 Mercenary with Small Laser Last Messages --------------- >>Inventory(Components) Retrieving component inventory records... Found 5 registered component stockpiles: XZK5373Q53: Flight Unit 6SX5ED08ZG: Med. Storage Unit 026AUS17Z1: EM Pulse Gun RNWMCC7HZ2: Lgt. Cannon V459ZEG31M: Sensor Array Downloaded coordinate data. 00565_ Lgt. Treads destroyed. 00579_ G-34 Mercenary destroyed. 00579_ Switching to secondary target: G-34 Mercenary. 00589_ R-06 Scavenger collects Aluminum Leg. 00593_ R-06 Scavenger collects Ion Engine. 00597_ R-06 Scavenger collects Aluminum Leg. 00598_ G-34 Mercenary destroyed. 00603_ R-06 Scavenger collects Sml. Laser. 00664_ Acquired Core Shielding. 00754_ U-05 Engineer works on Material Compactor. 00817_ Lgt. Assault Rifle destroyed. Map ----- +----------------------------------------------------+ | """"" + #???????????????????????????? | | """"" # #???????????????????????????? | | """"" # """ """ #???????????????????????????? | | """ #?""" """ ????#####???????????????????? | | #?""" """?????#"""#???????????????????? | | ###############"T"#########? ?????????? | | """ #? ?????????? | | """"" < ## ?????????? | | """"" """ """ """ """ ## ########## | | """"" """ """ """ """ ###### ## # | | """ """ """ """ """ #????# ## """ # | | #????# ##! """ # | | #??]?# ## """ # | | ################+##### #????# # # | | ??????????????? ^???# #????#^^+ !!! # | | ??????????????? ???# #????+^^# !!! # | | ???????????????" "???# ###### # !! # | | ?????????????????????# ""T"" # # | | ?????????????????????# """"" # # | | ?????????????????????# + # | | ?????????????????????# ########## | | ?????????????????????###"T"#### ### #????????? | | ?????????????????????#######??# ###+########?? | | ?????????????????????# #???# ## #?? | | ?????????????????????# T #???# ## #?? | | ?????????????????????# @##### ## """ """ #?? | | ?????????????????????# [ g % ## """ """ #?? | | ?????????????????????# # ## """ """ #?? | | ?????????????????????# ## ## #?? | | ?????????????????????# ! ## % ## ! "Y" #?? | | ?????????????????????####### ## """ #?? | | ????????????????? ##+########??? | | ???????????????? #???????? | | ????????????????? #???????? | | ????????????????? ##u###???????? | | ??????????????????################## ????????? | | ???????????????????????????????????# ??????? | | ???????????????????????????????????# ????? | | ???????????????????????????????????# " #???? | | ???????????????????????????????????# """ #???? | | ???????????????????????????????????# "" #???? | | ???????????????????????????????????# "" #???? | | ???????????????????????????????????# " #???? | | ???????????????????????????????????# ? #???? | | ????????????????????????????????????###???###???? | | ????????????????????????????????????????????????? | | ????????????????????????????????????????????????? | | | | | | | +----------------------------------------------------+ Best States ------------- Heat Dissipation 39 Energy Generation 10 Energy Capacity 250 Matter Stores 300 Matter Capacity 300 Sight Range 16 Terrain Scan Range 16 Terrain Scan Density 10 Evasion (%) 40 Recoil Reduction 2 Item Schematics ----------------- None Robot Schematics ------------------ None Fabricated ------------ Nothing Repaired ---------- Nothing Studied --------- None Alien Tech Used ----------------- None Achievements -------------- None Challenges ------------ None Game ------ Seed CloakingPulseBrace Manual? 0 Play Time 00:13:08 Cumulative 372.8 hours Start 2026.03.25 @ 20:20:52 End 2026.03.25 @ 20:30:37 Sessions 1 Manual Loads 0 Difficulty Rogue Special Mode None Game No. 129 Rogue 128 Adventurer 1 Explorer 0 Win Type - Total 14 Types 12/0/2/0/0/0/0/0/0/0 Lore% 79 Gallery% 73 Achievement% 58 Wizard Run 0 Options --------- Layout 0 ASCII 1 Keyboard 1 Movement Vi Keybinds 0 Fullscreen 1 Font 36/Terminus++ Map View 76x50 Zoom Use 0% Tactical HUD 1 Map Filters NONE Filters NONE Steam 0 RUN: e422dde4-b819-43c9-9acc-1c404c33b03d